bitfinex/quotes_BTCUSD_20250719
["timestamp","ask_amount","ask_price","bid_price","bid_amount"]
[1752936589480,0.00014968,117780.0,117770.0,4.22744285]
[1752936590477,0.00014968,117780.0,117770.0,4.41833885]
[1752936590893,0.00014968,117780.0,117770.0,4.41829885]
[1752936591473,0.00014968,117780.0,117770.0,4.41250285]
[1752936591748,0.00014968,117780.0,117770.0,4.43552985]
[1752936591969,0.00014968,117780.0,117770.0,4.28971985]
[1752936592256,0.00014968,117780.0,117770.0,4.23814585]
[1752936592461,0.00014968,117780.0,117770.0,4.28660285]
[1752936592672,0.00014968,117780.0,117770.0,4.08320085]
[1752936592882,0.00014968,117780.0,117770.0,4.12890085]
[1752936593084,0.00014968,117780.0,117770.0,4.13144785]
[1752936593293,0.00014968,117780.0,117770.0,3.71229885]
[1752936593533,0.00014968,117780.0,117770.0,4.12931485]
[1752936593755,0.00014968,117780.0,117770.0,0.67288671]
[1752936593979,0.00219968,117780.0,117770.0,0.97413586]
[1752936594205,0.00219968,117780.0,117770.0,0.99111767]
[1752936594423,0.00219968,117780.0,117770.0,1.01055852]
[1752936594674,0.00014968,117780.0,117770.0,1.28538202]
[1752936594884,0.00014968,117780.0,117770.0,1.66943702]
[1752936595272,0.00014968,117780.0,117770.0,1.67043702]
[1752936595834,0.00014968,117780.0,117770.0,1.66943702]
[1752936595950,0.00014968,117780.0,117770.0,1.42939483]
[1752936596171,0.00014968,117780.0,117770.0,0.78200571]
[1752936596376,0.03034968,117780.0,117770.0,1.20880543]
[1752936596588,0.03239968,117780.0,117770.0,1.46329831]
[1752936596817,0.01719968,117780.0,117770.0,1.21925626]
[1752936597050,0.01719968,117780.0,117770.0,1.47672914]
[1752936597256,0.01719968,117780.0,117770.0,1.46823845]
[1752936597702,0.00219968,117780.0,117770.0,1.46823845]
[1752936597901,0.00014968,117780.0,117770.0,1.46623845]
[1752936598212,0.00014968,117780.0,117770.0,1.46823845]
[1752936598584,0.00014968,117780.0,117770.0,1.45974769]
[1752936598795,0.04296958,117780.0,117770.0,0.81685418]
[1752936599014,0.04296958,117780.0,117770.0,0.68405418]
[1752936599225,0.05796951,117780.0,117770.0,0.81685418]
[1752936599667,0.0494794,117780.0,117770.0,0.68601418]
[1752936599930,0.0494794,117780.0,117770.0,0.8272653]
[1752936600133,0.0494794,117780.0,117770.0,0.68601418]
[1752936600355,0.06645998,117780.0,117770.0,0.81877418]
[1752936600585,0.5049796,117780.0,117770.0,0.43151028]
[1752936600806,0.49964942,117780.0,117770.0,0.56427028]
[1752936601054,0.25760723,117780.0,117770.0,0.56427028]
[1752936601514,0.25760723,117780.0,117770.0,0.57681113]
[1752936601738,0.25760723,117780.0,117770.0,0.44405113]
[1752936601976,0.25444723,117780.0,117770.0,0.56327028]
[1752936602373,0.25444723,117780.0,117770.0,0.57781113]
[1752936602596,0.25444723,117780.0,117770.0,0.57381113]
[1752936602815,0.25444723,117780.0,117770.0,0.57481113]
[1752936603032,0.25444694,117780.0,117770.0,0.57481113]
[1752936604229,0.08463883,117780.0,117770.0,0.57481113]
[1752936604664,0.25444694,117780.0,117770.0,0.57481113]
[1752936605188,0.08463883,117780.0,117770.0,0.57481113]
[1752936605409,0.09312866,117780.0,117770.0,0.57481113]
[1752936605639,0.0846384,117780.0,117770.0,0.57481113]
[1752936605849,0.27142709,117780.0,117770.0,0.57481113]
[1752936606728,0.27142709,117780.0,117770.0,0.44205113]
[1752936606991,0.49964927,117780.0,117770.0,0.22027028]
[1752936607667,0.49964927,117780.0,117770.0,0.21827028]
[1752936607933,0.50064927,117780.0,117770.0,0.21827028]
[1752936608153,0.50064927,117780.0,117770.0,0.08551028]
[1752936608371,0.25860708,117780.0,117770.0,0.21827028]
[1752936608588,0.50064927,117780.0,117770.0,0.21827028]
[1752936609018,0.50164927,117780.0,117770.0,0.21827028]
[1752936611245,0.25960708,117780.0,117770.0,0.21827028]
[1752936611460,0.50164927,117780.0,117770.0,0.21827028]
[1752936611661,0.25960708,117780.0,117770.0,0.21827028]
[1752936611850,0.50164927,117780.0,117770.0,0.21827028]
[1752936617903,0.51022038,117780.0,117770.0,0.21827028]
[1752936618233,0.50164927,117780.0,117770.0,0.21827028]
[1752936619120,0.25960708,117780.0,117770.0,0.21827028]
[1752936619362,0.50164927,117780.0,117770.0,0.21827028]
[1752936620283,0.51012261,117780.0,117770.0,0.21827028]
[1752936620473,0.50164927,117780.0,117770.0,0.21827028]
[1752936621579,0.50164927,117780.0,117770.0,0.21823028]
[1752936624794,0.50995185,117780.0,117770.0,0.21823028]
[1752936625006,0.50164927,117780.0,117770.0,0.21823028]
[1752936627451,0.25960708,117780.0,117770.0,0.21823028]
[1752936627652,0.50164927,117780.0,117770.0,0.21823028]
[1752936629099,0.50996378,117780.0,117770.0,0.21823028]
[1752936629534,0.50164927,117780.0,117770.0,0.21823028]
[1752936630708,0.25960708,117780.0,117770.0,0.08551028]
[1752936630921,0.50164927,117780.0,117770.0,0.21819028]
[1752936631722,0.50164927,117780.0,117770.0,0.08551028]
[1752936631961,0.50164927,117780.0,117770.0,0.21819028]
[1752936632496,0.25960708,117780.0,117770.0,0.21819028]
[1752936632707,0.50164927,117780.0,117770.0,0.08551028]
[1752936632906,0.50164927,117780.0,117770.0,0.21819028]
[1752936633730,0.50164927,117780.0,117770.0,0.08551028]
[1752936633904,0.50164927,117780.0,117770.0,0.21819028]
[1752936635562,0.50164927,117780.0,117770.0,0.08551028]
[1752936635792,0.21350251,117750.0,117740.0,0.01645331]
[1752936636002,0.21559251,117750.0,117740.0,0.23464359]
[1752936636199,0.21559251,117750.0,117740.0,0.59116444]
[1752936636413,0.21559251,117750.0,117740.0,0.57790113]
[1752936636979,0.21559251,117750.0,117740.0,0.57890113]
[1752936637174,0.21559251,117750.0,117740.0,0.44303113]
[1752936637379,0.24819251,117750.0,117740.0,0.23373113]
[1752936637618,0.4933647,117750.0,117740.0,0.001]
[1752936637795,0.4933647,117750.0,117740.0,0.13368]
[1752936638215,0.4933647,117750.0,117740.0,0.13268]
[1752936638432,0.4933647,117750.0,117740.0,0.13468]
[1752936638814,0.4933647,117750.0,117740.0,0.13268]
[1752936639959,0.18686745,117730.0,117720.0,0.59271085]
[1752936640156,0.18686788,117730.0,117720.0,0.81288113]
[1752936641202,0.22202659,117730.0,117720.0,0.66635104]
[1752936641423,0.22202659,117730.0,117720.0,0.80103104]
[1752936641668,0.22202659,117730.0,117720.0,0.78573104]
[1752936642132,0.22202659,117730.0,117720.0,0.66835104]
[1752936642347,0.22202659,117730.0,117720.0,0.80103104]
[1752936643017,0.22202659,117730.0,117720.0,0.81703104]
[1752936643285,0.03515871,117730.0,117720.0,1.05907323]
[1752936643499,0.23050357,117740.0,117730.0,0.04634085]
[1752936643709,0.06063777,117740.0,117730.0,0.13383113]
[1752936643935,0.06063777,117740.0,117730.0,0.37906332]
[1752936644180,0.03515871,117750.0,117740.0,0.56469994]
[1752936644439,0.20193551,117770.0,117750.0,0.04634085]
[1752936644440,0.06912464,117760.0,117750.0,0.04634085]
[1752936644686,0.06912464,117760.0,117750.0,0.50657332]
[1752936644910,0.23896159,117760.0,117750.0,0.26453113]
[1752936645130,0.23896202,117760.0,117750.0,0.25071113]
[1752936645358,0.0521416,117760.0,117750.0,0.25386113]
[1752936645568,0.06912485,117760.0,117750.0,0.25386113]
[1752936645839,0.06063315,117760.0,117750.0,0.25386113]
[1752936646061,0.04364998,117760.0,117750.0,0.51170332]
[1752936646279,0.06912479,117760.0,117750.0,0.51170332]
[1752936646484,0.06063258,117760.0,117750.0,0.51170332]
[1752936646695,0.06912421,117760.0,117750.0,0.26966113]
[1752936647181,0.05214117,117760.0,117750.0,0.26966113]
[1752936647390,0.06912399,117760.0,117750.0,0.26966113]
[1752936647561,0.06912392,117760.0,117750.0,0.26966113]
[1752936647778,0.0776154,117760.0,117750.0,0.26966113]
[1752936647983,0.07761584,117760.0,117750.0,0.26966113]
[1752936648995,0.06912421,117760.0,117750.0,0.26966113]
[1752936649391,0.04364998,117760.0,117750.0,0.26966113]
[1752936649807,0.05214139,117760.0,117750.0,0.26966113]
[1752936650034,0.04364998,117760.0,117750.0,0.51170332]
[1752936650162,0.05214139,117760.0,117750.0,0.51170332]
[1752936650369,0.06063294,117760.0,117750.0,0.51170332]
[1752936652376,0.06912464,117760.0,117750.0,0.51170332]
[1752936653235,0.06063294,117760.0,117750.0,0.26966113]
[1752936653863,0.06912464,117760.0,117750.0,0.26966113]
[1752936654697,0.07761648,117760.0,117750.0,0.47338113]
[1752936654825,0.07761648,117760.0,117750.0,0.45758113]
[1752936655751,0.24745343,117760.0,117750.0,0.45758113]
[1752936655963,0.23896216,117760.0,117750.0,0.45758113]
[1752936658175,0.23047075,117760.0,117750.0,0.45758113]
[1752936658384,0.22588262,117760.0,117750.0,0.45758113]
[1752936658794,0.22588262,117760.0,117750.0,0.32494113]
[1752936659023,0.21739107,117760.0,117750.0,0.44154113]
[1752936659343,0.04755376,117760.0,117750.0,0.45794113]
[1752936659634,0.0560456,117760.0,117750.0,0.45794113]
[1752936659874,0.22588255,117760.0,117750.0,0.69998332]
[1752936661490,0.21947107,117760.0,117750.0,0.44150113]
[1752936661704,0.25157107,117760.0,117750.0,0.30894113]
[1752936661923,0.25467107,117760.0,117750.0,0.43633113]
[1752936662380,0.25157107,117760.0,117750.0,0.23261113]
[1752936662826,0.23537107,117760.0,117750.0,0.23261113]
[1752936663042,0.23537107,117760.0,117750.0,0.47465332]
[1752936663264,0.23537107,117760.0,117750.0,0.47985332]
[1752936663480,0.21947107,117760.0,117750.0,0.47985332]
[1752936663922,0.21739107,117760.0,117750.0,0.47985332]
[1752936665032,0.20889937,117760.0,117750.0,0.23781113]
[1752936665232,0.19563937,117760.0,117750.0,0.47985332]
[1752936665861,0.204131,117760.0,117750.0,0.47985332]
[1752936666090,0.204131,117760.0,117750.0,0.34729332]
[1752936666292,0.204131,117760.0,117750.0,0.47985332]
[1752936667161,0.02580185,117760.0,117750.0,0.6655047]
[1752936667402,0.01731058,117760.0,117750.0,0.68999726]
[1752936667620,0.01731058,117760.0,117750.0,0.69848975]
[1752936668060,0.01731058,117760.0,117750.0,0.68999726]
[1752936668499,0.01731058,117760.0,117750.0,0.69848975]
[1752936669761,0.01731058,117760.0,117750.0,0.68999726]
[1752936669982,0.01631058,117760.0,117750.0,0.68999726]
[1752936670198,0.02480185,117760.0,117750.0,0.6815047]
[1752936670812,0.01631058,117760.0,117750.0,0.69848947]
[1752936671028,0.01631058,117760.0,117750.0,0.68999719]
[1752936671270,0.01631058,117760.0,117750.0,0.68999726]
[1752936671492,0.01631058,117760.0,117750.0,0.69848975]
[1752936671726,0.01631058,117770.0,117750.0,0.70698217]
[1752936671932,0.01631058,117770.0,117760.0,0.54819323]
[1752936672107,0.01631058,117770.0,117760.0,0.55652211]
[1752936672321,0.04178063,117780.0,117770.0,0.01454085]
[1752936672552,0.03329045,117780.0,117770.0,0.47981332]
[1752936672729,0.04178063,117780.0,117770.0,0.47981332]
[1752936672933,0.03329045,117780.0,117770.0,0.47981332]
[1752936673150,0.04186538,117780.0,117770.0,0.47981332]
[1752936673548,0.05235571,117780.0,117770.0,0.47981332]
[1752936673722,0.02955473,117780.0,117770.0,0.47981332]
[1752936673925,0.04586531,117780.0,117770.0,0.47981332]
[1752936674602,0.05435557,117780.0,117770.0,0.47981332]
[1752936674875,0.02039533,117780.0,117770.0,0.64963585]
[1752936675119,0.01697828,117790.0,117770.0,0.69072697]
[1752936675324,0.04177818,117790.0,117780.0,0.51190143]
[1752936675544,0.03328886,117790.0,117780.0,0.51710143]
[1752936675742,0.03328879,117790.0,117780.0,0.51710143]
[1752936676622,0.03528879,117790.0,117780.0,0.51710143]
[1752936676828,0.04177804,117790.0,117780.0,0.51710143]
[1752936677032,0.04277804,117790.0,117780.0,0.51710143]
[1752936677237,0.04377804,117790.0,117780.0,0.34729332]
[1752936677450,0.03528879,117790.0,117780.0,0.51710143]
[1752936677905,0.03528871,117790.0,117780.0,0.51710143]
[1752936678468,0.04377789,117790.0,117780.0,0.51710143]
[1752936678953,0.06075675,117790.0,117780.0,0.10525113]
[1752936679167,0.06075675,117790.0,117780.0,0.47977332]
[1752936679597,0.06075732,117790.0,117780.0,0.47977332]
[1752936680548,0.21565274,117790.0,117780.0,0.23773113]
[1752936680766,0.21565274,117790.0,117780.0,0.47977332]
[1752936681192,0.21565274,117790.0,117780.0,0.10201113]
[1752936681405,0.23886342,117790.0,117780.0,0.23253113]
[1752936681826,0.24189342,117790.0,117780.0,0.21799028]
[1752936682388,0.23886342,117790.0,117780.0,0.21799028]
[1752936683839,0.01698267,117760.0,117750.0,0.03434]
[1752936684106,0.20521085,117760.0,117750.0,0.58551028]
[1752936684316,0.23601085,117760.0,117750.0,0.55803503]
[1752936684533,0.23601085,117760.0,117750.0,0.57257588]
[1752936684744,0.23601085,117760.0,117750.0,0.55803503]
[1752936684958,0.23601085,117760.0,117750.0,0.81461807]
[1752936685179,0.23601085,117760.0,117750.0,0.81761807]
[1752936685598,0.22041085,117760.0,117750.0,0.81761807]
[1752936685809,0.22041085,117760.0,117750.0,0.81461807]
[1752936686024,0.22041085,117760.0,117750.0,0.81961807]
[1752936686232,0.22041085,117760.0,117750.0,0.81561807]
[1752936686440,0.22041085,117760.0,117750.0,0.81761807]
[1752936686982,0.21941085,117760.0,117750.0,0.81761807]
[1752936687407,0.21941085,117760.0,117750.0,0.68517807]
[1752936687870,0.21941085,117760.0,117750.0,0.81761807]
[1752936688310,0.21941085,117760.0,117750.0,0.81561096]
[1752936688517,0.23581085,117760.0,117750.0,0.81561096]
[1752936688718,0.23581085,117760.0,117750.0,0.44112877]
[1752936688889,0.23581085,117760.0,117750.0,0.57356877]
[1752936689468,0.20421085,117760.0,117750.0,0.57570877]
[1752936689680,0.21981085,117760.0,117750.0,0.82079096]
[1752936689863,0.20421085,117760.0,117750.0,0.82079096]
[1752936690913,0.01806289,117760.0,117750.0,0.82079096]
[1752936691116,0.04078517,117760.0,117750.0,0.85099096]
[1752936691308,0.0407851,117760.0,117750.0,0.85099096]
[1752936692155,0.02480192,117760.0,117750.0,0.85099096]
[1752936692386,0.00849127,117760.0,117750.0,1.02933483]
[1752936692594,0.04178452,117760.0,117750.0,0.85099096]
[1752936693009,0.05027615,117760.0,117750.0,0.85099096]
[1752936693479,0.04178452,117760.0,117750.0,0.85099096]
[1752936693708,0.05876784,117760.0,117750.0,0.85099096]
[1752936694038,0.05027607,117760.0,117750.0,0.85099096]
[1752936694235,0.2201136,117760.0,117750.0,0.57874877]
[1752936694444,0.24520233,117760.0,117750.0,0.68317096]
[1752936694657,0.24520233,117760.0,117750.0,0.81561096]
[1752936695335,0.04178531,117760.0,117750.0,0.82079096]
[1752936695757,0.04178531,117760.0,117750.0,0.68835096]
[1752936695967,0.05027708,117760.0,117750.0,0.82079096]
[1752936696700,0.04178531,117760.0,117750.0,0.68835096]
[1752936696896,0.03329361,117760.0,117750.0,0.82079096]
[1752936697115,0.02480185,117760.0,117750.0,0.99064234]
[1752936697341,0.03329319,117760.0,117750.0,1.02324234]
[1752936697739,0.04178467,117760.0,117750.0,0.72095096]
[1752936697973,0.03329319,117760.0,117750.0,1.02320234]
[1752936698604,0.04178467,117760.0,117750.0,0.85335096]
[1752936699031,0.01698145,117770.0,117760.0,0.01454085]
[1752936699350,0.03329196,117770.0,117760.0,0.47967332]
[1752936699556,0.01631058,117770.0,117760.0,0.68820211]
[1752936699759,0.03329174,117770.0,117760.0,0.67971027]
[1752936700505,0.03329174,117770.0,117760.0,0.50987332]
[1752936700707,0.21160561,117770.0,117760.0,0.47967332]
[1752936700955,0.22089492,117770.0,117760.0,0.10005113]
[1752936701214,0.23679492,117770.0,117760.0,0.23245113]
[1752936702031,0.21368604,117770.0,117760.0,0.47967332]
[1752936706336,0.03537239,117770.0,117760.0,0.47967332]
[1752936706658,0.03329059,117780.0,117760.0,0.68960197]
[1752936706910,0.01697972,117780.0,117770.0,0.34513332]
[1752936707139,0.01631058,117780.0,117770.0,0.54869585]
[1752936707355,0.02480033,117780.0,117770.0,0.54869585]
[1752936707794,0.01631058,117780.0,117770.0,0.54869585]
[1752936708007,0.02480048,117780.0,117770.0,0.37887332]
[1752936708216,0.04178056,117780.0,117770.0,0.37887332]
[1752936708459,0.02480048,117780.0,117770.0,0.54869585]
[1752936708678,0.02480048,117780.0,117770.0,0.55718697]
[1752936708892,0.02480048,117780.0,117770.0,0.54869585]
[1752936709109,0.01631058,117780.0,117770.0,0.37887332]
[1752936709346,0.0248004,117780.0,117770.0,0.37887332]
[1752936709824,0.03329037,117780.0,117770.0,0.37887332]
[1752936710027,0.04178048,117780.0,117770.0,0.37887332]
[1752936710983,0.05027066,117780.0,117770.0,0.37887332]
[1752936711743,0.05876099,117780.0,117770.0,0.37887332]
[1752936711965,0.22007928,117780.0,117770.0,0.37887332]
[1752936712187,0.22007928,117780.0,117770.0,0.13683113]
[1752936712428,0.21158931,117780.0,117770.0,0.37887332]
[1752936714462,0.21158931,117780.0,117770.0,0.13683113]
[1752936714678,0.21158931,117780.0,117770.0,0.37887332]
[1752936715780,0.2030992,117780.0,117770.0,0.37887332]
[1752936716878,0.2030992,117780.0,117770.0,0.34727332]
[1752936718093,0.2030992,117780.0,117770.0,0.37817332]
[1752936719002,0.19460902,117780.0,117770.0,0.37817332]
[1752936719229,0.19460902,117780.0,117770.0,0.47959332]
[1752936721174,0.03329102,117780.0,117770.0,0.47959332]
[1752936721422,0.03329102,117780.0,117770.0,0.51079332]
[1752936722064,0.20309913,117780.0,117770.0,0.51079332]
[1752936722695,0.03329059,117780.0,117770.0,0.51079332]
[1752936722908,0.04178085,117780.0,117770.0,0.51079332]
[1752936723546,0.22007929,117780.0,117770.0,0.51079332]
[1752936723979,0.21158939,117780.0,117770.0,0.47959332]
[1752936724414,0.21158939,117780.0,117770.0,0.23755113]
[1752936724655,0.21158939,117780.0,117770.0,0.47959332]
[1752936725581,0.03329059,117780.0,117770.0,0.47959332]
[1752936725794,0.03329059,117780.0,117770.0,0.51079332]
[1752936726024,0.0084899,117780.0,117770.0,0.68910697]
[1752936726220,0.20308536,117790.0,117780.0,0.01454085]
[1752936726399,0.20308536,117790.0,117780.0,0.34420332]
[1752936726609,0.20308536,117790.0,117780.0,0.34716332]
[1752936727479,0.20408536,117790.0,117780.0,0.34716332]
[1752936728818,0.20508536,117790.0,117780.0,0.34716332]
[1752936729475,0.01831058,117790.0,117780.0,0.51697143]
[1752936729709,0.02679961,117790.0,117780.0,0.54887143]
[1752936729972,0.03528871,117790.0,117780.0,0.37906332]
[1752936730202,0.04377796,117790.0,117780.0,0.37906332]
[1752936730427,0.01897813,117790.0,117780.0,0.54887143]
[1752936730679,0.00948903,117790.0,117780.0,0.55736183]
[1752936730895,0.02646738,117790.0,117780.0,0.54887143]
[1752936731104,0.04277796,117790.0,117780.0,0.54887143]
[1752936731307,0.04277796,117790.0,117780.0,0.37906332]
[1752936731513,0.04177796,117790.0,117780.0,0.37906332]
[1752936731724,0.01697813,117790.0,117780.0,0.54887143]
[1752936731939,0.01697813,117790.0,117780.0,0.55736183]
[1752936732802,0.00848903,117790.0,117780.0,0.55736183]
[1752936733038,0.00848903,117790.0,117780.0,0.57434242]
[1752936733233,0.03328756,117800.0,117780.0,0.91434227]
[1752936733474,0.03328756,117800.0,117790.0,0.47733332]
[1752936733475,0.05026519,117800.0,117790.0,0.47733332]
[1752936733697,0.0417763,117800.0,117790.0,0.47944332]
[1752936734591,0.05026526,117800.0,117790.0,0.47944332]
[1752936734802,0.05031519,117800.0,117790.0,0.47944332]
[1752936735048,0.04182623,117800.0,117790.0,0.47944332]
[1752936735430,0.04282623,117800.0,117790.0,0.47944332]
[1752936735626,0.04282623,117800.0,117790.0,0.51054332]
[1752936736033,0.04382623,117800.0,117790.0,0.47944332]
[1752936736264,0.04382623,117800.0,117790.0,0.51054332]
[1752936737021,0.05231512,117800.0,117790.0,0.47944332]
[1752936737282,0.04382623,117800.0,117790.0,0.47944332]
[1752936737481,0.05231512,117800.0,117790.0,0.51054332]
[1752936737664,0.04382623,117800.0,117790.0,0.47944332]
[1752936738049,0.04382623,117800.0,117790.0,0.23740113]
[1752936738249,0.04382623,117800.0,117790.0,0.47944332]
[1752936738798,0.05231512,117800.0,117790.0,0.47944332]
[1752936739982,0.21360602,117800.0,117790.0,0.47944332]
[1752936740675,0.21360602,117800.0,117790.0,0.10512113]
[1752936740904,0.21360602,117800.0,117790.0,0.23732113]
[1752936741380,0.22209498,117800.0,117790.0,0.23732113]
[1752936741991,0.21360638,117800.0,117790.0,0.47936332]
[1752936742409,0.21360638,117800.0,117790.0,0.34716332]
[1752936742610,0.21360638,117800.0,117790.0,0.10512113]
[1752936742849,0.21360638,117800.0,117790.0,0.47936332]
[1752936743473,0.03533814,117800.0,117790.0,0.47936332]
[1752936744118,0.0418271,117800.0,117790.0,0.47936332]
[1752936744730,0.21160638,117800.0,117790.0,0.34716332]
[1752936744868,0.21160638,117800.0,117790.0,0.47936332]
[1752936745292,0.20311764,117800.0,117790.0,0.47936332]
[1752936745708,0.20311764,117800.0,117790.0,0.34716332]
[1752936745927,0.19462875,117800.0,117790.0,0.47936332]
[1752936747070,0.19462875,117800.0,117790.0,0.23732113]
[1752936747466,0.22010979,117800.0,117790.0,0.23728113]
[1752936748094,0.22010979,117800.0,117790.0,0.23432113]
[1752936749638,0.20470979,117800.0,117790.0,0.23733113]
[1752936750302,0.22120979,117800.0,117790.0,0.10005113]
[1752936750456,0.22433979,117800.0,117790.0,0.23221113]
[1752936750788,0.22120979,117800.0,117790.0,0.23221113]
[1752936751762,0.20470979,117800.0,117790.0,0.23732113]
[1752936752645,0.20470979,117800.0,117790.0,0.23431113]
[1752936752843,0.22120979,117800.0,117790.0,0.23221113]
[1752936753600,0.46638198,117800.0,117790.0,0.21767028]
[1752936756034,0.46638198,117800.0,117790.0,0.21763028]
[1752936756658,0.22433979,117800.0,117790.0,0.21763028]
[1752936759547,0.22433979,117800.0,117790.0,0.13212]
[1752936760651,0.46638198,117800.0,117790.0,0.13212]
[1752936760879,0.01697972,117780.0,117770.0,0.83393304]
[1752936761080,0.02546976,117780.0,117770.0,1.05366332]
[1752936761686,0.19526745,117790.0,117780.0,0.01454085]
[1752936761910,0.21243745,117790.0,117780.0,0.23217113]
[1752936762705,0.21243745,117790.0,117780.0,0.10005113]
[1752936762932,0.21243745,117790.0,117780.0,0.23313113]
[1752936763158,0.20394799,117790.0,117780.0,0.23313113]
[1752936764158,0.20394799,117790.0,117780.0,0.23513113]
[1752936764704,0.20394799,117790.0,117780.0,0.10305113]
[1752936764922,0.20394799,117790.0,117780.0,0.23513113]
[1752936766011,0.20394799,117790.0,117780.0,0.23723113]
[1752936766241,0.20394799,117790.0,117780.0,0.24024113]
[1752936767153,0.20394799,117790.0,117780.0,0.4217741]
[1752936767773,0.20394799,117790.0,117780.0,0.2896941]
[1752936768045,0.20394799,117790.0,117780.0,0.4217741]
[1752936768465,0.18884799,117790.0,117780.0,0.4217741]
[1752936768721,0.18884799,117790.0,117780.0,0.24024113]
[1752936768953,0.18884799,117790.0,117780.0,0.4217741]
[1752936769862,0.18884799,117790.0,117780.0,0.4217341]
[1752936770323,0.18035845,117790.0,117780.0,0.24020113]
[1752936770575,0.18035845,117790.0,117780.0,0.4217341]
[1752936771069,0.22786903,117790.0,117780.0,0.23509113]
[1752936773719,0.22786903,117790.0,117780.0,0.10305113]
[1752936773946,0.22786903,117790.0,117780.0,0.23509113]
[1752936774682,0.409402,117790.0,117780.0,0.003]
[1752936774925,0.412552,117790.0,117780.0,0.13504]
[1752936775842,0.412552,117790.0,117780.0,0.13204]
[1752936776517,0.409402,117790.0,117780.0,0.13204]
[1752936776980,0.22786903,117790.0,117780.0,0.13204]
[1752936778027,0.46994693,117790.0,117780.0,0.13204]
[1752936778242,0.47309693,117790.0,117780.0,0.13204]
[1752936778459,0.17829837,117780.0,117770.0,0.01761085]
[1752936778702,0.19614837,117780.0,117770.0,0.23205113]
[1752936778914,0.18024837,117780.0,117770.0,0.23205113]
[1752936779122,0.18873855,117780.0,117770.0,0.23726113]
[1752936779334,0.18678855,117780.0,117770.0,0.23726113]
[1752936779814,0.18678855,117780.0,117770.0,0.24026113]
[1752936780249,0.17829837,117780.0,117770.0,0.24026113]
[1752936781783,0.17829837,117780.0,117770.0,0.10826113]
[1752936782039,0.19655895,117780.0,117770.0,0.10305113]
[1752936782263,0.47308685,117780.0,117770.0,0.003]
[1752936782474,0.47308685,117780.0,117770.0,0.13496]
[1752936782877,0.47308685,117780.0,117770.0,0.13396]
[1752936783172,0.47308685,117780.0,117770.0,0.13196]
[1752936783413,0.47408685,117780.0,117770.0,0.13196]
[1752936783764,0.20931351,117770.0,117760.0,1.20364]
[1752936783970,0.45334141,117770.0,117760.0,1.3356]
[1752936784172,0.21441351,117770.0,117760.0,1.3356]
[1752936789040,0.21126351,117770.0,117760.0,1.3356]
[1752936789943,0.21126351,117770.0,117760.0,1.20364]
[1752936790155,0.21126351,117770.0,117760.0,1.3356]
[1752936792577,0.46965199,117770.0,117760.0,1.20364]
[1752936792796,0.46965199,117770.0,117760.0,1.34077]
[1752936792797,0.19462409,117770.0,117760.0,1.34077]
[1752936792999,0.203115,117770.0,117760.0,1.6151479]
[1752936793215,0.203115,117770.0,117760.0,1.34077]
[1752936799557,0.203115,117770.0,117760.0,1.13713]
[1752936800274,0.203115,117770.0,117760.0,1.26858113]
[1752936801547,0.203115,117770.0,117760.0,1.23718113]
[1752936801961,0.203115,117770.0,117760.0,1.22260028]
[1752936804296,0.203115,117770.0,117760.0,1.25420028]
[1752936804625,0.203115,117770.0,117760.0,1.12232028]
[1752936804828,0.203115,117770.0,117760.0,1.25420028]
[1752936806469,0.203115,117770.0,117760.0,1.22260028]
[1752936806887,0.203115,117770.0,117760.0,1.22256028]
[1752936807171,0.203115,117770.0,117760.0,1.09072028]
[1752936807412,0.203115,117770.0,117760.0,1.22256028]
[1752936808878,0.4473129,117770.0,117760.0,1.13705]
[1752936809748,0.4473129,117770.0,117760.0,1.00521]
[1752936809970,0.4473129,117770.0,117760.0,1.13705]
[1752936810189,0.205235,117770.0,117760.0,1.13705]
[1752936811336,0.203115,117770.0,117760.0,1.13705]
[1752936813575,0.205235,117770.0,117760.0,1.1318]
[1752936814259,0.205235,117770.0,117760.0,1.13714]
[1752936814478,0.205235,117770.0,117760.0,1.13394]
[1752936814700,0.205235,117770.0,117760.0,1.13714]
[1752936815496,0.203115,117770.0,117760.0,1.00534]
[1752936815700,0.203115,117770.0,117760.0,1.13714]
[1752936816758,0.205235,117770.0,117760.0,1.13714]
[1752936816964,0.205235,117770.0,117760.0,1.0]
[1752936817177,0.237835,117770.0,117760.0,1.1318]
[1752936817360,0.205235,117770.0,117760.0,1.13394]
[1752936817613,0.205235,117770.0,117760.0,1.13714]
[1752936817828,0.203115,117770.0,117760.0,1.13714]
[1752936819790,0.203115,117770.0,117760.0,1.00534]
[1752936820005,0.203115,117770.0,117760.0,1.13714]
[1752936821797,0.203115,117770.0,117760.0,1.00534]
[1752936822017,0.205235,117770.0,117760.0,1.1371]
[1752936822417,0.203115,117770.0,117760.0,1.1371]
[1752936822748,0.205235,117770.0,117760.0,1.1371]
[1752936823183,0.38684913,117770.0,117760.0,1.1371]
[1752936826636,0.38684913,117770.0,117760.0,1.00534]
[1752936826849,0.38684913,117770.0,117760.0,1.1371]
[1752936827723,0.60338326,117770.0,117760.0,1.0]
[1752936827948,0.88854354,117770.0,117760.0,1.0]
[1752936828197,0.82061354,117770.0,117760.0,1.13172]
[1752936829021,0.70165136,117770.0,117760.0,1.13172]
[1752936829573,0.70265136,117770.0,117760.0,1.13172]
[1752936829982,0.70165136,117770.0,117760.0,1.13172]
[1752936830417,0.70265136,117770.0,117760.0,1.13172]
[1752936842566,0.70265136,117770.0,117760.0,0.57601701]
[1752936842783,1.04265136,117770.0,117760.0,0.35380068]
[1752936843054,1.37067706,117770.0,117760.0,0.16711125]
[1752936843270,1.37067706,117770.0,117750.0,0.13168]
[1752936843271,0.22493923,117760.0,117750.0,0.13168]
[1752936843485,0.92866167,117760.0,117750.0,0.13168]
[1752936843718,0.93191167,117760.0,117750.0,0.13168]
[1752936844068,0.68964559,117760.0,117750.0,0.13168]
[1752936844509,0.18685186,117740.0,117730.0,0.00316]
[1752936844702,0.18685186,117740.0,117730.0,0.16816]
[1752936845837,0.18685186,117740.0,117730.0,0.17016]
[1752936846286,0.44542852,117740.0,117730.0,0.13896]
[1752936846930,0.20316244,117740.0,117730.0,0.13996]
[1752936847131,0.20316244,117740.0,117730.0,0.13867765]
[1752936848028,0.20316244,117740.0,117730.0,0.13767765]
[1752936848501,0.20316244,117740.0,117730.0,0.16937765]
[1752936848698,0.20316244,117740.0,117730.0,0.16737765]
[1752936849228,0.21153324,117740.0,117730.0,0.16737765]
[1752936850118,0.20316244,117740.0,117730.0,0.16737765]
[1752936852083,0.211586,117740.0,117730.0,0.16737765]
[1752936852543,0.20316244,117740.0,117730.0,0.16737765]
[1752936853018,0.04178712,117750.0,117740.0,0.0317]
[1752936853250,0.21163893,117750.0,117740.0,0.30412988]
[1752936853477,0.2031468,117750.0,117740.0,0.30412988]
[1752936854168,0.2031468,117750.0,117740.0,0.12253028]
[1752936854409,0.2041468,117750.0,117740.0,0.30412988]
[1752936854642,0.2051468,117750.0,117740.0,0.30412988]
[1752936855101,0.19665445,117750.0,117740.0,0.12253028]
[1752936856302,0.19665445,117750.0,117740.0,0.25413028]